bitfinex/quotes_ETHUSD_20251120
["timestamp","ask_amount","ask_price","bid_price","bid_amount"]
[1763643069351,0.9413,3029.6,3029.5,3.691]
[1763643070079,0.9413,3029.6,3029.5,6.99187473]
[1763643071173,7.54283154,3029.6,3029.0,0.001]
[1763643071372,0.4516,3029.1,3029.0,0.001]
[1763643071605,0.5626,3029.1,3029.0,0.001]
[1763643071744,1.0523,3029.1,3029.0,0.001]
[1763643072247,1.0515,3029.1,3029.0,0.001]
[1763643074164,1.36068363,3029.1,3029.0,0.001]
[1763643074368,4.66199425,3029.1,3029.0,0.001]
[1763643074567,1.36068363,3029.1,3029.0,0.001]
[1763643074759,4.66199425,3029.1,3029.0,0.001]
[1763643075589,1.36068363,3029.1,3029.0,0.001]
[1763643076384,1.0515,3029.1,3029.0,0.001]
[1763643077168,4.35281062,3029.1,3029.0,0.001]
[1763643077986,0.1847,3028.6,3027.3,0.001]
[1763643078185,0.4516,3027.4,3027.3,0.001]
[1763643078483,0.111,3027.4,3027.3,0.001]
[1763643078681,0.111,3027.6,3027.3,0.001]
[1763643078873,0.6744,3027.9,3027.3,3.30425708]
[1763643079071,0.111,3027.6,3027.4,0.33042571]
[1763643079269,0.111,3027.6,3027.5,3.30305532]
[1763643079472,0.111,3027.6,3027.4,3.63354806]
[1763643079676,0.111,3027.6,3027.4,3.30312235]
[1763643079987,0.111,3027.6,3027.3,0.001]
[1763643079988,0.4516,3027.5,3027.3,0.001]
[1763643080158,0.111,3027.6,3027.3,3.30427354]
[1763643080880,0.6007,3027.6,3027.3,3.30427354]
[1763643081188,0.111,3027.6,3027.3,0.001]
[1763643081485,3.48657249,3028.6,3027.3,0.001]
[1763643081486,0.111,3028.3,3027.6,1.31249664]
[1763643081782,0.6007,3028.3,3027.6,1.31249664]
[1763643082393,0.111,3028.3,3027.6,1.31249664]
[1763643083275,0.111,3028.3,3027.7,6.60567426]
[1763643083579,0.111,3028.3,3027.8,1.31249664]
[1763643083781,0.111,3028.3,3027.8,2.10431373]
[1763643084706,0.4897,3028.2,3027.8,2.10431373]
[1763643085001,0.111,3028.3,3027.8,2.10431373]
[1763643085173,0.6007,3028.3,3027.8,2.10431373]
[1763643086104,0.6007,3028.3,3027.9,3.30261897]
[1763643086484,0.6007,3028.3,3027.9,6.60523794]
[1763643087004,0.6007,3028.3,3027.9,3.30261897]
[1763643087508,0.4516,3028.0,3027.8,4.59799264]
[1763643087689,0.6007,3028.3,3027.8,4.59799264]
[1763643087690,0.6363,3027.9,3027.8,4.59799264]
[1763643088100,1.126,3027.9,3027.8,4.59799264]
[1763643088688,1.126,3027.9,3027.8,7.90072069]
[1763643088886,0.6007,3028.3,3027.8,7.90072069]
[1763643089106,0.6007,3028.3,3027.8,12.30244468]
[1763643089312,0.6007,3028.3,3027.8,11.20344874]
[1763643091083,0.111,3028.3,3027.9,0.405504]
[1763643091613,0.1928,3028.9,3028.1,0.405504]
[1763643091785,0.111,3028.8,3028.1,0.405504]
[1763643092110,0.111,3028.8,3028.3,0.405504]
[1763643092274,0.111,3028.8,3028.3,4.096504]
[1763643092477,0.002,3028.6,3028.3,4.096504]
[1763643092980,0.4679,3028.4,3028.3,4.096504]
[1763643093177,0.9471,3028.4,3028.3,3.691]
[1763643094006,0.4679,3028.4,3028.3,3.691]
[1763643094192,0.4679,3028.4,3028.3,6.99318274]
[1763643094389,0.002,3028.6,3028.3,3.691]
[1763643094594,0.4679,3028.4,3028.3,6.99318274]
[1763643095116,0.9471,3028.4,3028.3,6.99318274]
[1763643095819,0.4679,3028.4,3028.3,6.99318274]
[1763643096330,0.9471,3028.4,3028.3,3.691]
[1763643097218,0.4679,3028.4,3028.3,3.691]
[1763643097393,0.4679,3028.4,3028.3,6.99317148]
[1763643097590,0.9471,3028.4,3028.3,3.691]
[1763643097794,0.9471,3028.4,3028.2,3.30223303]
[1763643098098,0.9471,3028.4,3028.0,7.91751644]
[1763643098301,0.4679,3028.4,3028.0,4.61500654]
[1763643098516,0.4788,3028.1,3028.0,1.31249664]
[1763643098883,0.4813,3028.3,3028.0,1.31249664]
[1763643099283,0.113,3028.6,3028.0,1.31249664]
[1763643099516,0.4813,3028.5,3028.0,1.31249664]
[1763643100799,0.4788,3028.1,3028.0,4.61500654]
[1763643101294,0.9601,3028.1,3028.0,0.405504]
[1763643101612,0.9601,3028.1,3027.4,0.90699264]
[1763643101789,0.4788,3027.9,3027.4,7.5133215]
[1763643101991,0.4788,3027.9,3027.5,0.405504]
[1763643102293,0.4813,3027.8,3027.4,7.5133215]
[1763643102526,0.6707,3027.9,3027.4,7.5133215]
[1763643102692,0.6732,3027.9,3027.4,8.59508886]
[1763643103026,0.6732,3027.9,3027.5,0.405504]
[1763643103246,0.1919,3027.9,3027.5,0.405504]
[1763643104117,0.111,3028.0,3027.5,0.405504]
[1763643104622,0.4813,3028.5,3027.5,0.405504]
[1763643104788,0.111,3028.4,3028.0,0.405504]
[1763643105304,0.5923,3028.4,3028.0,0.405504]
[1763643106209,0.002,3028.6,3028.0,1.33519144]
[1763643106410,0.002,3028.6,3028.0,1.31249664]
[1763643106926,0.002,3028.6,3028.2,1.31249664]
[1763643107143,0.002,3028.6,3028.4,0.405504]
[1763643108931,0.002,3028.6,3028.5,4.6144613]
[1763643113947,0.9621,3028.6,3028.5,4.6144613]
[1763643114246,0.002,3028.6,3028.5,4.6144613]
[1763643115527,0.002,3028.6,3028.5,8.3054613]
[1763643117460,0.4808,3028.6,3028.5,8.3054613]
[1763643117659,0.9621,3028.6,3028.5,8.3054613]
[1763643118330,0.002,3028.6,3028.5,8.3054613]
[1763643120247,0.0012,3028.6,3028.5,8.3054613]
[1763643121526,0.48,3028.6,3028.5,8.3054613]
[1763643121730,0.0012,3028.6,3028.5,8.3054613]
[1763643121931,0.0012,3028.6,3028.5,10.07934687]
[1763643123443,0.9613,3028.6,3028.5,10.07934687]
[1763643123647,0.9613,3028.6,3028.5,8.3054613]
[1763643126746,0.9613,3028.6,3028.5,17.7368973]
[1763643127369,0.9613,3028.6,3028.5,13.0211793]
[1763643127764,0.9613,3028.6,3028.5,9.71921464]
[1763643127972,0.9613,3028.6,3028.3,0.001]
[1763643128261,0.4788,3028.4,3028.0,4.715718]
[1763643128464,0.4723,3028.1,3028.0,0.90699264]
[1763643128632,0.4723,3028.1,3028.0,4.61500654]
[1763643128832,0.4657,3028.4,3028.1,1.31249664]
[1763643129367,0.4723,3028.2,3028.1,0.405504]
[1763643129587,0.4723,3028.2,3028.1,1.31249664]
[1763643129745,0.938,3028.2,3028.1,1.31249664]
[1763643130664,0.938,3028.2,3028.1,4.61489748]
[1763643130875,0.4723,3028.2,3028.1,4.61489748]
[1763643131056,0.5779,3028.6,3028.1,7.91729832]
[1763643131253,0.4657,3028.5,3028.1,7.91729832]
[1763643131472,0.4723,3028.2,3028.1,4.61489748]
[1763643132255,0.938,3028.2,3028.1,4.61489748]
[1763643133079,0.4723,3028.2,3028.1,4.61489748]
[1763643133578,0.4657,3028.5,3028.1,11.60829832]
[1763643133954,0.4657,3028.5,3028.2,6.13277627]
[1763643134468,0.4657,3028.5,3028.2,6.53828027]
[1763643135245,0.4657,3028.5,3028.4,0.405504]
[1763643135450,0.4657,3028.5,3028.3,0.405504]
[1763643135864,0.51357592,3028.4,3028.1,1.31249664]
[1763643136146,0.4723,3028.2,3028.1,1.31249664]
[1763643136480,0.4723,3028.2,3028.1,4.61489748]
[1763643136645,0.938,3028.2,3028.1,4.61489748]
[1763643137781,0.0012,3028.6,3028.1,7.91729832]
[1763643137954,0.4657,3028.5,3028.1,7.91729832]
[1763643139576,0.4723,3028.2,3028.1,4.61489748]
[1763643140248,0.4657,3028.5,3028.1,4.61489748]
[1763643140452,0.4657,3028.5,3028.1,7.91729832]
[1763643140857,0.4657,3028.5,3028.1,4.61489748]
[1763643141065,0.4723,3028.2,3028.1,4.61489748]
[1763643141473,0.938,3028.2,3028.1,4.61489748]
[1763643142783,0.938,3028.2,3028.1,1.31249664]
[1763643143172,0.938,3028.2,3028.1,4.61489748]
[1763643143576,0.938,3028.2,3028.1,1.31249664]
[1763643144292,0.9372,3028.2,3028.1,1.31249664]
[1763643144620,0.9372,3028.2,3028.1,4.61489748]
[1763643144988,0.9372,3028.2,3028.1,1.31249664]
[1763643145374,0.4715,3028.2,3028.1,8.30589748]
[1763643145610,0.0012,3028.6,3028.2,0.90699264]
[1763643145798,0.0012,3028.6,3028.5,6.13277627]
[1763643145995,0.0012,3028.6,3028.5,7.44527291]
[1763643146394,0.0012,3028.6,3028.5,10.74723757]
[1763643147414,0.0012,3028.6,3028.5,14.43823757]
[1763643147719,0.0012,3028.6,3028.5,16.21226786]
[1763643149703,0.0012,3028.6,3028.5,12.52126786]
[1763643152507,0.002,3028.9,3028.8,1.31249664]
[1763643152721,0.4536,3028.9,3028.8,1.31249664]
[1763643153818,0.002,3028.9,3028.8,1.31249664]
[1763643153981,0.113,3029.3,3028.8,2.10409563]
[1763643154181,0.113,3029.3,3029.2,0.405504]
[1763643154381,1.0612,3029.3,3029.2,0.405504]
[1763643154694,1.0612,3029.3,3029.2,3.70670563]
[1763643154895,1.0612,3029.3,3029.2,8.42094722]
[1763643155528,1.0612,3029.3,3028.6,4.20884828]
[1763643155695,0.53786502,3029.2,3029.1,5.11974559]
[1763643155895,0.4966,3029.2,3029.1,5.11974559]
[1763643156104,0.9482,3029.2,3029.1,5.11974559]
[1763643156306,0.9482,3029.2,3029.1,9.83398718]
[1763643156511,0.002,3029.3,3029.2,3.70670563]
[1763643156699,0.4536,3029.3,3029.2,3.70670563]
[1763643156911,0.9502,3029.3,3029.2,3.70670563]
[1763643158603,0.9502,3029.3,3029.2,8.42094722]
[1763643158915,0.4536,3029.3,3029.2,8.42094722]
[1763643159130,0.002,3029.3,3029.2,8.42094722]
[1763643160602,0.002,3029.3,3029.2,9.32793986]
[1763643162699,0.4529,3029.3,3029.2,9.32793986]
[1763643162892,0.4529,3029.3,3029.2,0.90699264]
[1763643163092,0.9207,3029.3,3029.2,4.71424159]
[1763643163522,0.9207,3029.3,3029.2,5.11974559]
[1763643163744,0.9207,3029.3,3029.2,0.405504]
[1763643164019,0.9207,3029.3,3029.2,5.11974559]
[1763643165826,0.9207,3029.3,3029.2,8.42094722]
[1763643166025,0.002,3029.3,3029.2,13.13518881]
[1763643167137,0.002,3029.3,3029.2,8.42094722]
[1763643167499,0.002,3029.3,3029.2,13.13518881]
[1763643168216,0.0012,3029.3,3029.2,13.13518881]
[1763643169016,0.002,3029.7,3029.3,0.405504]
[1763643169198,0.002,3029.7,3029.2,26.34843424]
[1763643169199,0.002,3029.7,3029.6,5.11974559]
[1763643170395,0.6502,3030.5,3029.7,1.31249664]
[1763643170603,0.41967527,3030.4,3029.7,0.405504]
[1763643170808,0.50905004,3030.3,3029.6,0.405504]
[1763643171002,0.50905004,3030.3,3029.7,6.60131366]
[1763643171326,0.4678,3030.3,3029.8,0.405504]
[1763643171726,0.4509,3029.9,3029.8,0.405504]
[1763643172028,0.4509,3029.9,3029.8,5.11974559]
[1763643172233,1.1012,3029.9,3029.8,5.11974559]
[1763643173330,1.1012,3029.9,3029.8,8.42029348]
[1763643175027,0.4678,3030.2,3029.8,11.72084137]
[1763643175242,0.30873996,3030.4,3030.2,0.405504]
[1763643175444,0.6502,3030.5,3030.3,9.42848318]
[1763643175742,0.111,3030.4,3030.3,9.83398718]
[1763643175943,1.0297,3030.4,3030.3,9.83398718]
[1763643176145,1.0297,3030.4,3030.3,5.11974559]
[1763643176337,1.0297,3030.4,3030.3,9.83398718]
[1763643176712,1.0810817,3031.4,3030.4,0.405504]
[1763643176713,0.4678,3031.2,3030.4,0.405504]
[1763643176913,0.4678,3031.2,3031.1,9.83398718]
[1763643177147,0.5788,3031.2,3031.1,5.11974559]
[1763643177440,1.0297,3031.2,3031.1,5.11974559]
[1763643177643,1.0297,3031.2,3031.1,8.41887791]
[1763643178144,0.1934,3032.1,3031.1,11.71801023]
[1763643178381,0.1934,3032.1,3031.2,0.405504]
[1763643178382,0.1825,3031.5,3031.2,0.405504]
[1763643178508,0.111,3031.4,3031.2,0.405504]
[1763643178713,0.4509,3031.3,3031.2,0.405504]
[1763643179015,0.111,3031.4,3031.2,0.405504]
[1763643179447,0.111,3031.4,3031.3,9.8240837]
[1763643179844,1.0297,3031.4,3031.3,6.52516905]
[1763643180033,0.5619,3031.4,3031.3,6.52516905]
[1763643180238,0.111,3031.4,3031.3,6.52516905]
[1763643180438,1.0297,3031.4,3031.3,6.52516905]
[1763643180836,1.0297,3031.4,3030.3,6.40291998]
[1763643181025,0.1825,3030.8,3030.5,0.405504]
[1763643181231,0.9187,3031.3,3030.5,1.39635677]
[1763643181443,0.50903779,3031.2,3030.7,0.405504]
[1763643181638,0.50903779,3031.2,3030.7,0.90699264]
[1763643181945,0.6334,3030.8,3030.2,3.30007721]
[1763643182168,0.5619,3030.7,3029.9,9.90131685]
[1763643182368,1.0297,3030.7,3030.0,0.50903779]
[1763643182675,1.0297,3030.7,3030.0,0.90699264]
[1763643183066,1.0297,3030.7,3030.1,0.405504]
[1763643183574,1.0297,3030.7,3030.4,0.405504]
[1763643184068,0.4509,3030.5,3030.4,0.405504]
[1763643185775,0.9187,3030.5,3030.4,4.61239104]
[1763643186297,0.002,3030.7,3030.4,7.91228544]
[1763643187188,0.002,3030.7,3030.6,0.405504]
[1763643187692,0.002,3030.7,3030.6,4.61217327]
[1763643190042,0.002,3030.7,3030.6,5.07627327]
[1763643190650,0.4794,3030.7,3030.5,3.29968689]
[1763643190890,0.4774,3030.6,3030.5,3.29968689]
[1763643191188,0.002,3030.7,3030.5,3.70519089]
[1763643191346,0.002,3030.7,3030.5,7.0049764]
[1763643191675,0.4774,3030.6,3030.5,3.70519089]
[1763643192395,0.4766,3030.6,3030.5,3.70519089]
[1763643192894,0.002,3030.7,3030.6,1.31249664]
[1763643193061,0.002,3030.7,3030.6,7.71541662]
[1763643193692,0.4641,3031.8,3030.8,1.31249664]
[1763643193904,0.5751,3031.8,3031.2,0.405504]
[1763643194074,0.111,3031.8,3031.2,0.405504]
[1763643194277,0.6466,3031.7,3031.2,0.405504]
[1763643194789,0.4641,3031.6,3031.2,0.405504]
[1763643195489,0.4774,3031.3,3030.8,0.90699264]
[1763643195689,0.1825,3031.7,3031.1,0.405504]
[1763643195883,0.6466,3031.7,3031.1,0.405504]
[1763643196283,0.50533235,3031.6,3031.1,0.405504]
[1763643197908,0.1825,3031.7,3031.3,0.405504]
[1763643199007,0.6466,3031.7,3031.3,0.405504]
[1763643199809,0.4641,3031.6,3031.4,6.59761166]
[1763643200206,0.4774,3031.5,3031.4,3.70430983]
[1763643200605,0.1825,3031.7,3031.4,7.00311566]
[1763643200913,0.1934,3032.1,3031.5,7.71541662]
[1763643201130,0.18,3032.3,3031.5,7.71541662]
[1763643201329,0.18,3032.3,3031.7,0.405504]
[1763643201534,0.6441,3032.3,3031.7,0.405504]
[1763643201737,0.6574,3031.8,3031.7,1.31249664]
[1763643204032,0.6574,3031.8,3031.7,4.61097604]
[1763643204620,1.1215,3031.8,3031.7,4.20547204]
[1763643204928,0.111,3032.0,3031.8,0.405504]
[1763643205133,0.111,3032.2,3031.8,0.405504]
[1763643205336,0.5629,3032.2,3031.8,0.405504]
[1763643206015,0.5629,3032.2,3032.0,0.405504]
[1763643206531,0.4673,3032.1,3032.0,0.405504]
[1763643206898,0.9192,3032.1,3032.0,0.405504]
[1763643207305,0.111,3032.2,3032.0,0.405504]
[1763643207500,0.002,3032.3,3032.0,0.405504]
[1763643207714,0.002,3032.3,3032.0,2.07583352]
[1763643208116,0.002,3032.3,3032.2,0.405504]
[1763643209341,0.002,3032.3,3032.2,1.31249664]
[1763643210121,0.002,3032.3,3032.2,4.61043213]
[1763643211468,0.002,3032.3,3032.2,11.12435211]
[1763643211665,0.002,3032.3,3032.2,12.7336247]
[1763643212324,0.002,3032.3,3032.2,12.6226247]
[1763643214718,0.002,3032.3,3032.2,11.01335211]
[1763643216251,0.0012,3032.3,3032.2,11.01335211]
[1763643218852,0.4929,3032.3,3032.2,11.01335211]
[1763643219162,0.0012,3032.3,3032.2,11.01335211]
[1763643219659,0.4929,3032.3,3032.2,11.01335211]
[1763643219958,0.0012,3032.3,3032.2,11.01335211]
[1763643220831,0.0012,3032.3,3032.2,9.31403068]
[1763643221026,0.4929,3032.3,3032.2,9.31403068]
[1763643221855,0.0012,3032.3,3032.2,9.31403068]
[1763643222466,0.4929,3032.3,3032.2,9.31403068]
[1763643222971,0.0012,3032.3,3032.2,9.31403068]
[1763643223331,0.111,3033.4,3032.2,23.76698013]
[1763643223332,0.4807,3033.4,3032.2,23.76698013]
[1763643223548,0.4807,3033.4,3033.3,6.01609519]
[1763643223752,0.9724,3033.4,3033.3,6.01609519]
[1763643224786,0.9724,3033.4,3033.3,1.31249664]
[1763643225280,0.9724,3033.4,3033.3,0.90699264]
[1763643225783,1.28023409,3033.4,3032.2,12.99093559]
[1763643225984,0.78853409,3033.3,3032.2,16.28887108]
[1763643226282,0.6846,3032.3,3032.2,9.6930001]
[1763643226481,0.6846,3032.3,3032.2,10.59999274]
[1763643226660,1.1653,3032.3,3032.2,10.59999274]
[1763643227060,0.6846,3032.3,3032.2,11.00549674]
[1763643227260,1.1653,3032.3,3032.2,10.0985041]
[1763643227460,0.6846,3032.3,3032.2,10.0985041]
[1763643227877,0.1929,3032.7,3032.2,13.39643959]
[1763643228089,0.6736,3032.7,3032.4,0.405504]
[1763643228478,0.4917,3032.5,3032.4,0.405504]
[1763643228779,0.4917,3032.5,3032.4,4.61021461]
[1763643229000,0.9724,3032.5,3032.4,4.61021461]
[1763643230053,0.04120245,3033.8,3032.5,0.90699264]
[1763643230054,0.6736,3032.9,3032.5,0.90699264]
[1763643230870,0.6736,3032.9,3032.7,1.31249664]
[1763643231572,0.111,3033.0,3032.7,1.31249664]
[1763643232396,0.4807,3033.3,3032.7,1.31249664]
[1763643232602,0.4807,3033.3,3032.7,7.70758086]
[1763643232820,0.4917,3032.8,3032.7,11.00497262]
[1763643233611,0.9724,3032.8,3032.7,11.00497262]
[1763643235308,0.4807,3033.2,3032.7,14.30236438]
[1763643235802,0.6846,3032.8,3032.7,11.00497262]
[1763643236206,0.4807,3033.2,3032.7,17.59975614]
[1763643236902,0.4917,3032.8,3032.7,11.00497262]
[1763643237209,0.6846,3032.8,3032.7,11.00497262]
[1763643237412,1.1653,3032.8,3032.7,11.00497262]
[1763643239583,0.6846,3032.8,3032.7,11.00497262]
[1763643239792,0.4917,3032.8,3032.7,11.00497262]
[1763643240413,0.9716,3032.8,3032.7,11.00497262]
[1763643240905,0.9716,3032.8,3032.7,10.72366491]
[1763643241273,0.1929,3032.9,3032.7,10.72366491]
[1763643241577,0.111,3033.1,3032.7,17.31844843]
[1763643241803,0.111,3033.1,3032.7,18.72056423]
[1763643242706,0.71187001,3033.8,3032.9,1.31249664]
[1763643242871,0.52188887,3034.8,3033.8,1.31249664]
[1763643242872,0.4807,3034.7,3033.8,1.31249664]
[1763643243075,0.4807,3034.7,3034.6,6.11377651]
[1763643243318,0.4807,3034.7,3034.0,1.31249664]
[1763643243319,0.9724,3034.7,3034.3,0.90699264]
[1763643243527,0.9724,3034.7,3034.0,1.31249664]
[1763643243528,0.4917,3034.1,3034.0,0.405504]
[1763643243676,0.4917,3034.1,3034.0,1.31249664]
[1763643243876,0.9724,3034.1,3034.0,1.31249664]
[1763643244327,0.9724,3034.1,3033.8,6.11377651]
[1763643244490,0.4807,3034.0,3033.9,1.31249664]
[1763643244693,0.6736,3034.0,3033.9,1.31249664]
[1763643244891,1.1653,3034.0,3033.9,1.31249664]
[1763643245220,1.1653,3034.0,3033.9,4.60858418]
[1763643246435,0.4917,3034.0,3033.9,4.60858418]
[1763643246627,0.9724,3034.0,3033.9,4.60858418]
[1763643246947,0.9724,3034.0,3033.6,1.31249664]
[1763643247098,0.111,3034.3,3033.8,0.90699264]
[1763643247099,1.1653,3033.9,3033.8,0.90699264]
[1763643247302,0.1929,3033.9,3033.8,1.31249664]
[1763643247524,0.6846,3033.9,3033.8,1.31249664]
[1763643247739,0.4807,3034.2,3033.9,0.405504]
[1763643247924,0.4807,3034.2,3034.1,6.11377651]
[1763643248100,0.4807,3034.2,3034.1,7.42627315]
[1763643248304,0.199,3035.0,3034.2,1.31249664]
[1763643248305,0.4898,3034.8,3034.2,1.31249664]
[1763643248499,0.4898,3034.8,3034.1,7.02076915]
[1763643248500,0.111,3034.6,3034.5,6.51928051]
[1763643248725,0.111,3034.6,3034.5,7.42627315]
[1763643249207,0.199,3035.0,3034.7,0.405504]
[1763643249536,0.4898,3034.9,3034.7,0.405504]
[1763643249707,0.4617,3034.8,3034.7,0.405504]
[1763643250105,0.9515,3034.8,3034.7,0.405504]
[1763643250545,0.4617,3034.8,3034.7,0.405504]
[1763643250938,0.9515,3034.8,3034.7,0.405504]
[1763643251447,0.9515,3034.8,3033.7,6.59260968]
[1763643251622,0.31,3035.0,3033.7,3.29630484]
[1763643251623,0.6519,3033.8,3033.7,3.29630484]
[1763643252742,1.1417,3033.8,3032.8,12.70834257]
[1763643252943,1.1417,3033.8,3032.8,16.0056256]
[1763643252944,0.9515,3033.7,3032.8,16.0056256]
[1763643253105,0.111,3033.6,3032.8,12.70834257]
[1763643253309,0.6008,3033.6,3032.8,12.70834257]
[1763643253760,0.6008,3033.6,3032.9,0.90699264]
[1763643254134,0.4617,3033.0,3032.9,0.90699264]
[1763643254330,0.4617,3033.0,3032.8,12.70834257]
[1763643254723,0.4617,3033.0,3032.9,0.90699264]
[1763643255054,0.4898,3033.3,3032.9,0.90699264]
[1763643255220,0.4898,3033.3,3033.2,1.31249664]
[1763643255622,0.9515,3033.3,3033.2,1.31249664]
[1763643256421,0.9515,3033.3,3032.9,0.90699264]
[1763643256621,0.4898,3033.2,3032.4,6.59543594]
[1763643256837,0.4898,3033.2,3032.4,3.29771797]
[1763643256838,0.1902,3032.7,3032.4,3.29771797]
[1763643257021,0.4617,3032.5,3032.4,4.20471061]
[1763643257562,0.1902,3033.8,3032.5,0.90699264]
[1763643257563,0.68,3033.1,3032.5,0.90699264]
[1763643257730,0.68,3033.1,3033.0,1.31249664]
[1763643257923,0.6519,3033.1,3033.0,1.31249664]
[1763643258137,1.1417,3033.1,3033.0,1.31249664]
[1763643259651,1.1417,3033.1,3033.0,4.60956225]
[1763643260373,0.6519,3033.1,3033.0,4.60956225]
[1763643261140,0.1902,3033.1,3033.0,4.60956225]
[1763643261345,0.4898,3033.7,3033.1,0.405504]
[1763643261545,0.111,3033.6,3033.5,4.2035148]
[1763643262046,1.0625,3033.6,3033.5,4.2035148]
[1763643262247,1.0625,3033.6,3033.1,1.31249664]
[1763643262549,0.9515,3033.5,3033.3,1.31249664]
[1763643263187,0.4617,3033.4,3033.3,1.31249664]
[1763643263588,0.4898,3033.5,3033.3,1.31249664]
[1763643263753,0.111,3033.6,3033.4,6.59326168]
[1763643264277,0.1102,3033.6,3033.4,6.59326168]
[1763643264675,0.1102,3033.6,3033.5,0.405504]
[1763643265400,0.1902,3033.8,3033.5,1.31249664]
[1763643265699,0.68,3033.8,3033.7,0.405504]
[1763643266050,0.111,3033.9,3033.7,0.405504]
[1763643266262,0.111,3033.9,3033.7,1.31249664]
[1763643266885,0.111,3034.1,3033.9,1.31249664]
[1763643267658,0.111,3034.1,3034.0,4.60847554]
[1763643267865,0.111,3034.5,3034.0,1.31249664]
[1763643268077,0.4617,3034.1,3034.0,1.31249664]
[1763643268581,0.9515,3034.1,3033.6,1.31249664]
[1763643268785,0.111,3034.5,3033.6,1.31249664]
[1763643268786,0.4617,3033.7,3033.6,4.60891014]
[1763643269084,0.6519,3033.7,3033.6,4.60891014]
[1763643269285,1.1417,3033.7,3033.6,4.60891014]
[1763643269668,0.6519,3033.7,3033.6,4.60891014]
[1763643270578,1.1417,3033.7,3033.6,4.60891014]
[1763643270776,1.1417,3033.7,3033.2,6.11377651]
[1763643270975,1.1417,3033.7,3033.0,5.09305103]
[1763643270976,0.4944,3033.3,3033.1,3.29695144]
[1763643271195,0.4944,3033.2,3033.1,4.60944808]
[1763643271853,0.5845,3033.5,3033.2,0.405504]
[1763643272285,0.4944,3033.3,3033.2,0.405504]
[1763643273603,0.5845,3033.5,3033.3,0.90699264]
[1763643273890,0.5845,3033.5,3033.4,4.20362348]
[1763643274255,1.0789,3033.5,3033.4,4.20362348]
[1763643274896,1.0789,3033.5,3033.0,3.691]
[1763643274897,1.0789,3033.5,3033.0,3.29706561]
[1763643275081,0.4944,3033.1,3033.0,4.20405825]
[1763643275282,0.4735,3033.4,3033.0,4.20405825]
[1763643275283,0.4735,3033.4,3033.0,7.50112386]
[1763643275471,0.4944,3033.1,3033.0,4.20405825]
[1763643275858,0.9679,3033.1,3033.0,4.20405825]
[1763643276939,0.9679,3033.1,3032.8,3.2972137]
[1763643277118,0.1902,3033.7,3032.7,0.90699264]
[1763643277119,0.111,3033.0,3032.7,0.90699264]
[1763643277298,0.1902,3033.7,3032.9,7.02076915]
[1763643277299,0.111,3033.3,3032.9,7.02076915]
[1763643277615,0.4735,3033.2,3033.0,0.90699264]
[1763643278008,0.4944,3033.1,3033.0,4.20405825]
[1763643278387,0.111,3033.3,3033.1,0.405504]
[1763643279114,0.4753,3033.2,3033.1,0.405504]
[1763643279421,0.4753,3033.2,3033.0,4.20405825]
[1763643279716,0.9432,3033.1,3033.0,4.20405825]
[1763643279935,0.9432,3033.1,3033.0,4.20505825]
[1763643280221,0.9432,3033.1,3033.0,0.001]
[1763643280391,1.25151167,3033.1,3033.0,0.001]
[1763643280888,1.25151167,3033.1,3033.0,3.29806561]
[1763643281715,1.25151167,3033.1,3033.0,0.001]
[1763643282388,0.9432,3033.1,3033.0,0.001]
[1763643282609,0.111,3033.3,3033.0,0.001]
[1763643282823,0.111,3033.3,3033.2,7.42627315]
[1763643284022,0.111,3033.3,3033.2,10.72312136]
[1763643286543,0.7107764,3034.4,3033.3,1.31249664]
[1763643286709,0.1808,3033.9,3033.5,1.31249664]
[1763643287037,0.111,3033.8,3033.5,5.00349664]
[1763643287454,0.111,3033.8,3033.7,0.405504]
[1763643287605,0.4679,3034.2,3033.7,1.31249664]
[1763643287805,0.111,3034.1,3033.7,1.31249664]
[1763643288035,0.111,3034.1,3033.9,1.31249664]
[1763643288212,0.4679,3034.0,3033.9,1.31249664]
[1763643288418,0.9432,3034.0,3033.9,1.31249664]
[1763643289032,0.4753,3034.0,3033.9,1.31249664]
[1763643290032,0.4753,3034.0,3033.9,4.60858418]
[1763643290738,0.5789,3034.2,3033.9,11.59567172]
[1763643292062,0.4753,3034.0,3033.9,8.29958418]
[1763643292526,0.9432,3034.0,3033.9,8.29958418]
[1763643293166,0.9432,3034.0,3033.9,4.59799264]
[1763643293533,0.9432,3034.0,3033.9,7.89408018]
[1763643296762,0.9432,3034.0,3033.9,8.90369269]
[1763643298268,0.4679,3034.5,3034.1,6.59174054]
[1763643298431,0.4679,3034.5,3034.1,3.70137427]
[1763643298432,0.4753,3034.2,3034.1,3.70137427]
[1763643298842,0.9432,3034.2,3034.1,3.70137427]
[1763643299042,1.25155383,3034.2,3034.1,3.29587027]
[1763643300373,1.25155383,3034.2,3034.0,3.2959789]
[1763643300672,0.9432,3034.1,3033.9,3.29703101]
[1763643300975,0.5863,3034.0,3033.9,4.20402365]
[1763643301137,1.0542,3034.0,3033.9,4.20402365]
[1763643302841,0.5863,3034.0,3033.9,4.20402365]
[1763643303044,1.0542,3034.0,3033.9,0.001]
[1763643303335,1.36249519,3034.0,3033.9,0.001]
[1763643304497,1.36249519,3034.0,3033.1,3.29687383]
[1763643304498,6.115158,3033.9,3032.4,0.001]
[1763643304646,0.4753,3033.1,3032.4,0.001]
[1763643304986,0.4753,3032.5,3032.4,3.29865084]
[1763643305174,0.5863,3032.5,3032.4,4.20564348]
[1763643305339,1.0542,3032.5,3032.4,4.20564348]
[1763643305746,1.0542,3032.5,3032.4,3.29865084]
[1763643306278,1.0542,3032.5,3032.4,4.20564348]
[1763643306896,1.0542,3032.5,3032.4,0.001]
[1763643307061,0.4679,3033.1,3032.4,9.89415391]
[1763643307390,0.111,3033.0,3032.4,9.89415391]
[1763643307556,0.4753,3032.5,3032.4,4.20571061]
[1763643307755,0.5863,3032.5,3032.4,4.20571061]